[Event "*** Titled Tuesday Blitz"]
[Site "Chess.com"]
[Date "2020.02.04"]
[Round "3"]
[White "AwareIdea"]
[Black "Leonid_Starozhilov"]
[Result "0-1"]
[WhiteElo "2430"]
[BlackElo "2701"]
[TimeControl "180+2"]
[EndTime "9:40:20 PST"]
[Termination "Leonid_Starozhilov won by checkmate"]

1. c4 {[%clk 0:03:01.9]} 1... Nf6 {[%clk 0:03:01.1]} 2. Nc3 {[%clk 0:03:02.5]}
2... g6 {[%clk 0:03:01.6]} 3. d4 {[%clk 0:03:03.2]} 3... Bg7 {[%clk 0:03:02.3]}
4. e4 {[%clk 0:03:04.5]} 4... d6 {[%clk 0:03:03.3]} 5. Nf3 {[%clk 0:03:06]} 5...
Bg4 {[%clk 0:03:04]} 6. h3 {[%clk 0:03:03.8]} 6... Bxf3 {[%clk 0:03:04.9]} 7.
Qxf3 {[%clk 0:03:05.7]} 7... Nc6 {[%clk 0:03:06.1]} 8. Be3 {[%clk 0:03:05.4]}
8... Nd7 {[%clk 0:03:02.8]} 9. O-O-O {[%clk 0:03:02.9]} 9... e5 {[%clk
0:02:58.4]} 10. d5 {[%clk 0:03:03.1]} 10... Nd4 {[%clk 0:02:59.3]} 11. Qg3
{[%clk 0:03:02.7]} 11... c6 {[%clk 0:02:46.5]} 12. Kb1 {[%clk 0:02:57.1]} 12...
c5 {[%clk 0:02:25.7]} 13. h4 {[%clk 0:02:55]} 13... h5 {[%clk 0:02:24.4]} 14. f3
{[%clk 0:02:47.8]} 14... a6 {[%clk 0:02:20.7]} 15. Qf2 {[%clk 0:02:47.4]} 15...
Bh6 {[%clk 0:02:01.2]} 16. Bxh6 {[%clk 0:02:43]} 16... Rxh6 {[%clk 0:02:03.1]}
17. g3 {[%clk 0:02:35.7]} 17... Rb8 {[%clk 0:01:56.7]} 18. Ne2 {[%clk
0:02:35.8]} 18... b5 {[%clk 0:01:46.3]} 19. Nc3 {[%clk 0:02:25.1]} 19... Qa5
{[%clk 0:01:40]} 20. Qe3 {[%clk 0:02:20.8]} 20... Rh8 {[%clk 0:01:35.9]} 21. Rh2
{[%clk 0:02:21.7]} 21... bxc4 {[%clk 0:01:16.3]} 22. Bxc4 {[%clk 0:02:21.1]}
22... Rb4 {[%clk 0:00:46.5]} 23. Bf1 {[%clk 0:02:10.7]} 23... Kf8 {[%clk
0:00:31.4]} 24. f4 {[%clk 0:02:09.2]} 24... Kg7 {[%clk 0:00:32]} 25. Rf2 {[%clk
0:02:05]} 25... Rhb8 {[%clk 0:00:30.6]} 26. f5 {[%clk 0:02:02.7]} 26... Qa3
{[%clk 0:00:20.5]} 27. Rdd2 {[%clk 0:02:01]} 27... c4 {[%clk 0:00:11]} 28. Kc1
{[%clk 0:01:52.5]} 28... Qa5 {[%clk 0:00:09.7]} 29. g4 {[%clk 0:01:43.1]} 29...
hxg4 {[%clk 0:00:06.1]} 30. h5 {[%clk 0:01:44]} 30... gxf5 {[%clk 0:00:07.2]}
31. Qg5+ {[%clk 0:01:42.7]} 31... Kh7 {[%clk 0:00:08.7]} 32. h6 {[%clk
0:01:36.9]} 32... Rg8 {[%clk 0:00:09.2]} 33. Qe7 {[%clk 0:01:37.7]} 33... Qd8
{[%clk 0:00:08.9]} 34. Qxf7+ {[%clk 0:01:36.4]} 34... Kh8 {[%clk 0:00:10.5]} 35.
exf5 {[%clk 0:01:31.2]} 35... g3 {[%clk 0:00:11.6]} 36. Rg2 {[%clk 0:01:24.2]}
36... Nf6 {[%clk 0:00:12.8]} 37. Kb1 {[%clk 0:01:09.3]} 37... Rb8 {[%clk
0:00:13.8]} 38. Bxc4 {[%clk 0:01:07.6]} 38... Qf8 {[%clk 0:00:14.2]} 39. Qxf8
{[%clk 0:01:06.4]} 39... Rbxf8 {[%clk 0:00:15]} 40. Bxa6 {[%clk 0:01:04.9]}
40... Nf3 {[%clk 0:00:13.3]} 41. Rd3 {[%clk 0:01:01.3]} 41... e4 {[%clk
0:00:11.3]} 42. Nxe4 {[%clk 0:01:00.9]} 42... Nxe4 {[%clk 0:00:09.8]} 43. Rxf3
{[%clk 0:01:02]} 43... Nd2+ {[%clk 0:00:07.1]} 44. Rxd2 {[%clk 0:01:01.5]} 44...
g2 {[%clk 0:00:09]} 45. Rxg2 {[%clk 0:00:58.8]} 45... Rxg2 {[%clk 0:00:10.9]}
46. Bd3 {[%clk 0:00:48.5]} 46... Rb8 {[%clk 0:00:10.2]} 47. b3 {[%clk
0:00:46.6]} 47... Kh7 {[%clk 0:00:09.3]} 48. f6+ {[%clk 0:00:44]} 48... Kxh6
{[%clk 0:00:10.7]} 49. f7 {[%clk 0:00:45.3]} 49... Kg7 {[%clk 0:00:10.1]} 50.
Bf5 {[%clk 0:00:42.8]} 50... Rh8 {[%clk 0:00:11]} 51. Bd3 {[%clk 0:00:28.1]}
51... Kf8 {[%clk 0:00:09.4]} 52. Rf1 {[%clk 0:00:21.5]} 52... Rhh2 {[%clk
0:00:09.1]} 53. Bf5 {[%clk 0:00:05.1]} 53... Rb2+ {[%clk 0:00:09.8]} 54. Kc1
{[%clk 0:00:04.7]} 54... Rxa2 {[%clk 0:00:08.6]} 55. Bd3 {[%clk 0:00:05.5]}
55... Ra1+ {[%clk 0:00:05.6]} 56. Bb1 {[%clk 0:00:06.6]} 56... Ra5 {[%clk
0:00:06]} 57. Rd1 {[%clk 0:00:07.2]} 57... Rc5+ {[%clk 0:00:05.3]} 58. Bc2
{[%clk 0:00:08.5]} 58... Rcxc2+ {[%clk 0:00:06.5]} 59. Kb1 {[%clk 0:00:10.4]}
59... Rb2+ {[%clk 0:00:08]} 60. Kc1 {[%clk 0:00:11.5]} 60... Rhc2# {[%clk
0:00:08]} 0-1

[Event "*** Titled Tuesday Blitz"]
[Site "Chess.com"]
[Date "2020.02.04"]
[Round "3"]
[White "severomorskij"]
[Black "GianmarcoVaR"]
[Result "0-1"]
[WhiteElo "2851"]
[BlackElo "2635"]
[TimeControl "180+2"]
[EndTime "9:40:37 PST"]
[Termination "GianmarcoVaR won by resignation"]

1. d4 {[%clk 0:03:01.9]} 1... Nf6 {[%clk 0:02:54.8]} 2. c4 {[%clk 0:03:02.5]}
2... e6 {[%clk 0:02:56.2]} 3. Nc3 {[%clk 0:03:03.5]} 3... Bb4 {[%clk 0:02:54.7]}
4. Nf3 {[%clk 0:03:04.5]} 4... b6 {[%clk 0:02:53.9]} 5. Bg5 {[%clk 0:03:02.2]}
5... Bb7 {[%clk 0:02:50.7]} 6. Nd2 {[%clk 0:03:02.3]} 6... h6 {[%clk 0:02:42.6]}
7. Bh4 {[%clk 0:03:01.2]} 7... Qe7 {[%clk 0:02:28.2]} 8. f3 {[%clk 0:02:46.2]}
8... Bxc3 {[%clk 0:02:29]} 9. bxc3 {[%clk 0:02:46.7]} 9... d6 {[%clk 0:02:30.6]}
10. e4 {[%clk 0:02:47.3]} 10... Nbd7 {[%clk 0:02:32.1]} 11. Bd3 {[%clk
0:02:44.9]} 11... e5 {[%clk 0:02:24.3]} 12. Nf1 {[%clk 0:02:39.9]} 12... Nf8
{[%clk 0:01:42.5]} 13. Ne3 {[%clk 0:02:37.3]} 13... Ne6 {[%clk 0:01:43.5]} 14.
Nf5 {[%clk 0:02:28.4]} 14... Qd8 {[%clk 0:01:33.9]} 15. c5 {[%clk 0:01:42.8]}
15... g6 {[%clk 0:01:07.5]} 16. Qa4+ {[%clk 0:01:00.4]} 16... Kf8 {[%clk
0:01:05.6]} 17. Ne3 {[%clk 0:01:00.5]} 17... dxc5 {[%clk 0:00:53.7]} 18. d5
{[%clk 0:00:48.3]} 18... Nf4 {[%clk 0:00:46.9]} 19. Qc2 {[%clk 0:00:46.3]} 19...
Kg7 {[%clk 0:00:27.2]} 20. O-O {[%clk 0:00:43.1]} 20... Bc8 {[%clk 0:00:15.4]}
21. Rad1 {[%clk 0:00:41.9]} 21... Bd7 {[%clk 0:00:14.4]} 22. Kh1 {[%clk
0:00:38.5]} 22... Re8 {[%clk 0:00:13.6]} 23. Bc4 {[%clk 0:00:37.6]} 23... g5
{[%clk 0:00:14]} 24. Bf2 {[%clk 0:00:36.9]} 24... Re7 {[%clk 0:00:13.7]} 25. a4
{[%clk 0:00:27.8]} 25... Ne8 {[%clk 0:00:12.8]} 26. Bb5 {[%clk 0:00:27.9]} 26...
Nd6 {[%clk 0:00:12.9]} 27. Bxd7 {[%clk 0:00:24.7]} 27... Qxd7 {[%clk 0:00:14.4]}
28. g3 {[%clk 0:00:24.2]} 28... Nh3 {[%clk 0:00:15.8]} 29. Be1 {[%clk
0:00:24.9]} 29... h5 {[%clk 0:00:13]} 30. c4 {[%clk 0:00:25]} 30... f6 {[%clk
0:00:12.7]} 31. Bc3 {[%clk 0:00:25.1]} 31... Rh8 {[%clk 0:00:06.6]} 32. Qg2
{[%clk 0:00:20]} 32... h4 {[%clk 0:00:06.2]} 33. gxh4 {[%clk 0:00:12.8]} 33...
Nf4 {[%clk 0:00:06.1]} 34. Qc2 {[%clk 0:00:12.5]} 34... Rxh4 {[%clk 0:00:06.7]}
35. Be1 {[%clk 0:00:13.5]} 35... Rh3 {[%clk 0:00:06.6]} 36. Bg3 {[%clk
0:00:14.4]} 36... Nh5 {[%clk 0:00:06.1]} 37. Kg2 {[%clk 0:00:11.7]} 37... Kg8
{[%clk 0:00:06.2]} 38. Ng4 {[%clk 0:00:10.7]} 38... Rh7 {[%clk 0:00:05.7]} 39.
Rh1 {[%clk 0:00:06.8]} 39... Kf7 {[%clk 0:00:05.5]} 40. a5 {[%clk 0:00:07.4]}
40... Nf4+ {[%clk 0:00:05.9]} 41. Bxf4 {[%clk 0:00:08.3]} 41... gxf4 {[%clk
0:00:07.4]} 42. Rdg1 {[%clk 0:00:07.5]} 42... Nb7 {[%clk 0:00:07.3]} 43. a6
{[%clk 0:00:07.2]} 43... Nd6 {[%clk 0:00:08.4]} 44. Kf2 {[%clk 0:00:07.8]} 44...
Qc8 {[%clk 0:00:08.8]} 45. Qa4 {[%clk 0:00:07.9]} 45... Qe8 {[%clk 0:00:08.8]}
46. Qxe8+ {[%clk 0:00:06.9]} 46... Nxe8 {[%clk 0:00:09.2]} 47. Rg2 {[%clk
0:00:08]} 47... Nd6 {[%clk 0:00:10.3]} 48. Rc1 {[%clk 0:00:08.8]} 48... R7h4
{[%clk 0:00:10.7]} 49. Ke2 {[%clk 0:00:08.7]} 49... Rh8 {[%clk 0:00:11.4]} 50.
Kf2 {[%clk 0:00:09.4]} 50... R3h4 {[%clk 0:00:11.4]} 51. Ke2 {[%clk 0:00:10.3]}
51... Ke7 {[%clk 0:00:12.2]} 52. Kf2 {[%clk 0:00:08.4]} 52... Nf7 {[%clk
0:00:13]} 53. Rc3 {[%clk 0:00:06]} 53... Ng5 {[%clk 0:00:14.1]} 54. Rd3 {[%clk
0:00:06.9]} 54... Rd8 {[%clk 0:00:13.9]} 55. Ke2 {[%clk 0:00:07.3]} 55... Rh3
{[%clk 0:00:14.4]} 56. Nf2 {[%clk 0:00:08]} 56... Rh4 {[%clk 0:00:14.2]} 57. Ng4
{[%clk 0:00:09.1]} 57... Rdh8 {[%clk 0:00:14.5]} 58. Rd1 {[%clk 0:00:08.4]}
58... Rh3 {[%clk 0:00:15.4]} 59. Rd3 {[%clk 0:00:09.4]} 59... R8h7 {[%clk
0:00:08.2]} 60. Rf2 {[%clk 0:00:09.3]} 60... R7h4 {[%clk 0:00:08.5]} 61. Rg2
{[%clk 0:00:10.4]} 61... Rh8 {[%clk 0:00:08.3]} 62. Nxe5 {[%clk 0:00:05]} 62...
fxe5 {[%clk 0:00:07.6]} 63. Rxg5 {[%clk 0:00:06]} 63... Rxh2+ {[%clk 0:00:09.1]}
64. Kd1 {[%clk 0:00:06.4]} 64... Ra2 {[%clk 0:00:07.2]} 65. Rd2 {[%clk
0:00:04.4]} 65... Rh1+ {[%clk 0:00:07.6]} 66. Ke2 {[%clk 0:00:05.8]} 66... Rh2+
{[%clk 0:00:08.9]} 67. Ke1 {[%clk 0:00:07]} 67... Rhxd2 {[%clk 0:00:09.9]} 68.
Rxe5+ {[%clk 0:00:07.5]} 68... Kd7 {[%clk 0:00:10.8]} 69. Rh5 {[%clk 0:00:08]}
69... Rh2 {[%clk 0:00:11.7]} 0-1

[Event "*** Titled Tuesday Blitz"]
[Site "Chess.com"]
[Date "2020.02.04"]
[Round "3"]
[White "SnekkerAndersen"]
[Black "SergioGarciaFuentes"]
[Result "0-1"]
[WhiteElo "2344"]
[BlackElo "2170"]
[TimeControl "180+2"]
[EndTime "9:40:42 PST"]
[Termination "SergioGarciaFuentes won by checkmate"]

1. h3 {[%clk 0:03:01.9]} 1... d5 {[%clk 0:02:54.6]} 2. a3 {[%clk 0:03:03.8]}
2... Bf5 {[%clk 0:02:51.3]} 3. d3 {[%clk 0:02:53.4]} 3... e6 {[%clk 0:02:51.5]}
4. Nf3 {[%clk 0:02:52.2]} 4... Nd7 {[%clk 0:02:47.2]} 5. Nc3 {[%clk 0:02:52.1]}
5... Ngf6 {[%clk 0:02:43.2]} 6. g3 {[%clk 0:02:49.5]} 6... h6 {[%clk 0:02:38]}
7. Bg2 {[%clk 0:02:48.8]} 7... Be7 {[%clk 0:02:37.2]} 8. O-O {[%clk 0:02:49]}
8... O-O {[%clk 0:02:36.3]} 9. Re1 {[%clk 0:02:48.9]} 9... Bh7 {[%clk
0:02:35.8]} 10. e4 {[%clk 0:02:46.1]} 10... c6 {[%clk 0:02:36.7]} 11. e5 {[%clk
0:02:45.8]} 11... Ne8 {[%clk 0:02:36.5]} 12. d4 {[%clk 0:02:45.5]} 12... Nc7
{[%clk 0:02:34.9]} 13. Ne2 {[%clk 0:02:45]} 13... c5 {[%clk 0:02:29]} 14. c3
{[%clk 0:02:43.8]} 14... Rc8 {[%clk 0:02:07.3]} 15. Bf4 {[%clk 0:02:31.1]} 15...
a6 {[%clk 0:02:00.4]} 16. Qd2 {[%clk 0:02:30.2]} 16... Re8 {[%clk 0:01:59.1]}
17. h4 {[%clk 0:02:30.2]} 17... Be4 {[%clk 0:01:54.8]} 18. Nc1 {[%clk
0:02:28.2]} 18... Nb6 {[%clk 0:01:36.1]} 19. Nh2 {[%clk 0:02:24.1]} 19... Bxg2
{[%clk 0:01:34.2]} 20. Kxg2 {[%clk 0:02:25.1]} 20... cxd4 {[%clk 0:01:26.6]} 21.
cxd4 {[%clk 0:02:26.8]} 21... Nc4 {[%clk 0:01:28]} 22. Qe2 {[%clk 0:02:27.3]}
22... Nb5 {[%clk 0:01:28.6]} 23. Nb3 {[%clk 0:02:27.1]} 23... Qb6 {[%clk
0:01:26.6]} 24. Nf3 {[%clk 0:02:11.3]} 24... Bf8 {[%clk 0:01:05.8]} 25. g4
{[%clk 0:02:00.5]} 25... Rc7 {[%clk 0:01:00.5]} 26. h5 {[%clk 0:01:58]} 26...
Nbxa3 {[%clk 0:01:00.1]} 27. bxa3 {[%clk 0:01:57]} 27... Qxb3 {[%clk 0:01:01]}
28. g5 {[%clk 0:01:53.4]} 28... hxg5 {[%clk 0:00:45.6]} 29. Nxg5 {[%clk
0:01:55.3]} 29... Nxa3 {[%clk 0:00:37.2]} 30. h6 {[%clk 0:01:48.6]} 30... gxh6
{[%clk 0:00:34.5]} 31. Qg4 {[%clk 0:01:38.5]} 31... Bg7 {[%clk 0:00:32.2]} 32.
Nf3 {[%clk 0:01:33.1]} 32... h5 {[%clk 0:00:26.9]} 33. Qg3 {[%clk 0:01:27.7]}
33... h4 {[%clk 0:00:20.5]} 34. Qxh4 {[%clk 0:01:27.2]} 34... Nc2 {[%clk
0:00:21.4]} 35. Rab1 {[%clk 0:01:25.4]} 35... Qd3 {[%clk 0:00:21.9]} 36. Rg1
{[%clk 0:01:19.6]} 36... Qe4 {[%clk 0:00:18.4]} 37. Bh6 {[%clk 0:01:11.1]} 37...
Qxh4 {[%clk 0:00:18.2]} 38. Nxh4 {[%clk 0:01:08.6]} 38... Bxh6 {[%clk
0:00:19.8]} 39. Kh3+ {[%clk 0:01:05.5]} 39... Kf8 {[%clk 0:00:20.6]} 40. Nf3
{[%clk 0:01:03.6]} 40... Rc3 {[%clk 0:00:18.8]} 41. Kg4 {[%clk 0:01:01.9]} 41...
Rxf3 {[%clk 0:00:18.5]} 42. Kxf3 {[%clk 0:01:02.1]} 42... Nxd4+ {[%clk
0:00:20.1]} 43. Kg4 {[%clk 0:01:03.1]} 43... b5 {[%clk 0:00:18.9]} 44. Rh1
{[%clk 0:00:59.6]} 44... Bd2 {[%clk 0:00:16.2]} 45. Rbd1 {[%clk 0:00:57.5]}
45... Bc3 {[%clk 0:00:16.5]} 46. Rd3 {[%clk 0:00:57.9]} 46... b4 {[%clk
0:00:17.5]} 47. Rh7 {[%clk 0:00:41.7]} 47... Ke7 {[%clk 0:00:17.2]} 48. f4
{[%clk 0:00:38.6]} 48... Ra8 {[%clk 0:00:17.6]} 49. Rg7 {[%clk 0:00:29.2]} 49...
a5 {[%clk 0:00:18.5]} 50. Rh3 {[%clk 0:00:30.2]} 50... a4 {[%clk 0:00:19.1]} 51.
Rhh7 {[%clk 0:00:30.9]} 51... Rf8 {[%clk 0:00:18.7]} 52. f5 {[%clk 0:00:31.6]}
52... Nxf5 {[%clk 0:00:19.3]} 53. Rg5 {[%clk 0:00:32.5]} 53... Bxe5 {[%clk
0:00:20.3]} 54. Rh1 {[%clk 0:00:16.4]} 54... a3 {[%clk 0:00:20.9]} 55. Kf3
{[%clk 0:00:14.4]} 55... a2 {[%clk 0:00:20.9]} 56. Rhg1 {[%clk 0:00:13.3]} 56...
a1=Q {[%clk 0:00:21]} 57. Rxa1 {[%clk 0:00:13.9]} 57... Bxa1 {[%clk 0:00:22.5]}
58. Ke2 {[%clk 0:00:14.8]} 58... Bf6 {[%clk 0:00:23.8]} 59. Rg1 {[%clk 0:00:15]}
59... Rb8 {[%clk 0:00:24.9]} 60. Rc1 {[%clk 0:00:14.9]} 60... b3 {[%clk
0:00:26.3]} 61. Rc7+ {[%clk 0:00:16.3]} 61... Kd6 {[%clk 0:00:27.4]} 62. Rxf7
{[%clk 0:00:17.8]} 62... b2 {[%clk 0:00:28.5]} 63. Kf3 {[%clk 0:00:17]} 63...
b1=Q {[%clk 0:00:29]} 64. Kg4 {[%clk 0:00:18.3]} 64... Qe4+ {[%clk 0:00:30.3]}
65. Kh5 {[%clk 0:00:19.4]} 65... Rh8+ {[%clk 0:00:30.6]} 66. Kg6 {[%clk
0:00:20.5]} 66... Qg4+ {[%clk 0:00:31.8]} 67. Kxf6 {[%clk 0:00:21.6]} 67... Rh6#
{[%clk 0:00:31.8]} 0-1

[Event "*** Titled Tuesday Blitz"]
[Site "Chess.com"]
[Date "2020.02.04"]
[Round "3"]
[White "Snegokhod"]
[Black "NemtsevIgor"]
[Result "1-0"]
[WhiteElo "2628"]
[BlackElo "2402"]
[TimeControl "180+2"]
[EndTime "9:40:59 PST"]
[Termination "Snegokhod won by resignation"]

1. e4 {[%clk 0:02:59.4]} 1... c6 {[%clk 0:02:59.5]} 2. d3 {[%clk 0:02:59.8]}
2... d5 {[%clk 0:03:00.6]} 3. Nd2 {[%clk 0:03:01.4]} 3... Nf6 {[%clk 0:03:01.2]}
4. Ngf3 {[%clk 0:03:02.2]} 4... Bg4 {[%clk 0:03:01.5]} 5. Be2 {[%clk 0:03:02.3]}
5... e6 {[%clk 0:03:02.4]} 6. O-O {[%clk 0:03:02.6]} 6... Bc5 {[%clk 0:02:58.6]}
7. e5 {[%clk 0:02:55.2]} 7... Nfd7 {[%clk 0:02:59.1]} 8. d4 {[%clk 0:02:56.4]}
8... Be7 {[%clk 0:02:58.5]} 9. c3 {[%clk 0:02:54.6]} 9... c5 {[%clk 0:02:52]}
10. Nb3 {[%clk 0:02:54.1]} 10... Bxf3 {[%clk 0:02:48.8]} 11. Bxf3 {[%clk
0:02:54.4]} 11... Nc6 {[%clk 0:02:46.8]} 12. Be3 {[%clk 0:02:54.4]} 12... cxd4
{[%clk 0:02:45.8]} 13. cxd4 {[%clk 0:02:54.8]} 13... O-O {[%clk 0:02:45.7]} 14.
Be2 {[%clk 0:02:54.5]} 14... Rc8 {[%clk 0:02:39.2]} 15. f4 {[%clk 0:02:53.6]}
15... a5 {[%clk 0:02:32.8]} 16. f5 {[%clk 0:02:53.3]} 16... Bg5 {[%clk
0:02:27.8]} 17. Qd2 {[%clk 0:02:51.2]} 17... Bxe3+ {[%clk 0:02:27.8]} 18. Qxe3
{[%clk 0:02:52.2]} 18... a4 {[%clk 0:02:28]} 19. Nd2 {[%clk 0:02:48.5]} 19...
Qb6 {[%clk 0:02:26.4]} 20. Nf3 {[%clk 0:02:46.1]} 20... exf5 {[%clk 0:02:03.5]}
21. Rad1 {[%clk 0:02:43.7]} 21... Nd8 {[%clk 0:01:59.1]} 22. Bd3 {[%clk
0:02:40.3]} 22... g6 {[%clk 0:01:52.8]} 23. Rf2 {[%clk 0:02:26.9]} 23... Ne6
{[%clk 0:01:48.2]} 24. Bb1 {[%clk 0:02:21.9]} 24... Rfe8 {[%clk 0:01:43.9]} 25.
Qh6 {[%clk 0:02:13.5]} 25... Qb4 {[%clk 0:01:27.9]} 26. h4 {[%clk 0:02:10.3]}
26... Qf8 {[%clk 0:01:28.3]} 27. Qe3 {[%clk 0:02:10.2]} 27... Nb6 {[%clk
0:01:27.9]} 28. Ng5 {[%clk 0:01:55.1]} 28... Nxg5 {[%clk 0:01:17.7]} 29. Qxg5
{[%clk 0:01:47.3]} 29... Qe7 {[%clk 0:01:15.1]} 30. Qg3 {[%clk 0:01:47.3]} 30...
Kh8 {[%clk 0:01:06.6]} 31. h5 {[%clk 0:01:46.2]} 31... Nc4 {[%clk 0:00:59.3]}
32. h6 {[%clk 0:01:40.6]} 32... Rg8 {[%clk 0:00:41.2]} 33. Bd3 {[%clk
0:01:32.6]} 33... Na5 {[%clk 0:00:36.3]} 34. Bb5 {[%clk 0:01:20.9]} 34... a3
{[%clk 0:00:33.6]} 35. bxa3 {[%clk 0:01:16.5]} 35... Nc6 {[%clk 0:00:33.8]} 36.
a4 {[%clk 0:01:13.3]} 36... Nd8 {[%clk 0:00:32.4]} 37. a5 {[%clk 0:01:08.2]}
37... Ne6 {[%clk 0:00:33.4]} 38. a6 {[%clk 0:01:08.7]} 38... bxa6 {[%clk
0:00:34]} 39. Bxa6 {[%clk 0:01:09.8]} 39... Qa7 {[%clk 0:00:34.3]} 40. Qd3
{[%clk 0:00:52.6]} 40... Rb8 {[%clk 0:00:22.1]} 41. a4 {[%clk 0:00:51.5]} 41...
Rb4 {[%clk 0:00:21.1]} 42. Bb5 {[%clk 0:00:44.5]} 42... Rxd4 {[%clk 0:00:22.2]}
43. Qf1 {[%clk 0:00:44.8]} 43... Rxd1 {[%clk 0:00:22.4]} 44. Qxd1 {[%clk
0:00:45.9]} 44... Qe3 {[%clk 0:00:23.1]} 45. Qxd5 {[%clk 0:00:43.8]} 45... Rd8
{[%clk 0:00:24.3]} 46. Bd7 {[%clk 0:00:37.5]} 46... Qa7 {[%clk 0:00:22.1]} 47.
Bxe6 {[%clk 0:00:31.4]} 47... Rxd5 {[%clk 0:00:23.3]} 48. Bxd5 {[%clk
0:00:32.7]} 48... Qe3 {[%clk 0:00:22.6]} 49. Bxf7 {[%clk 0:00:31.9]} 49... Qxh6
{[%clk 0:00:23.2]} 50. e6 {[%clk 0:00:32]} 50... Qe3 {[%clk 0:00:23.7]} 51. Kf1
{[%clk 0:00:29]} 51... Kg7 {[%clk 0:00:24.9]} 52. Re2 {[%clk 0:00:29.7]} 52...
Qc1+ {[%clk 0:00:26.1]} 53. Kf2 {[%clk 0:00:30.6]} 53... Qc5+ {[%clk 0:00:26.8]}
54. Kf1 {[%clk 0:00:30.2]} 54... Qc1+ {[%clk 0:00:27.1]} 55. Kf2 {[%clk
0:00:31.4]} 55... Qc5+ {[%clk 0:00:28.1]} 56. Kf3 {[%clk 0:00:30.8]} 56... Qe7
{[%clk 0:00:28.3]} 57. a5 {[%clk 0:00:27.8]} 57... Kf6 {[%clk 0:00:29.4]} 58. a6
{[%clk 0:00:28.8]} 58... g5 {[%clk 0:00:30.2]} 59. Ra2 {[%clk 0:00:28.8]} 59...
Qa7 {[%clk 0:00:31]} 60. Ke2 {[%clk 0:00:22.2]} 60... g4 {[%clk 0:00:31.5]} 61.
Kd3 {[%clk 0:00:23.3]} 61... Ke5 {[%clk 0:00:31.9]} 62. Kc4 {[%clk 0:00:24.5]}
62... Kd6 {[%clk 0:00:32.9]} 63. Kb5 {[%clk 0:00:25.7]} 63... Qb8+ {[%clk
0:00:32.9]} 64. Kc4 {[%clk 0:00:25.6]} 64... Qc7+ {[%clk 0:00:33.3]} 65. Kb3
{[%clk 0:00:25.7]} 65... Qb6+ {[%clk 0:00:34.3]} 66. Kc3 {[%clk 0:00:26.2]}
66... Qa7 {[%clk 0:00:34.9]} 67. Rd2+ {[%clk 0:00:25.1]} 67... Ke5 {[%clk
0:00:33.5]} 68. Re2+ {[%clk 0:00:23.7]} 68... Kf6 {[%clk 0:00:33]} 69. e7 {[%clk
0:00:24.1]} 69... Qc5+ {[%clk 0:00:32.8]} 70. Bc4 {[%clk 0:00:23.9]} 70... Qa5+
{[%clk 0:00:33.9]} 71. Kd3 {[%clk 0:00:24.5]} 71... Qa3+ {[%clk 0:00:33.7]} 72.
Kd4 {[%clk 0:00:25.6]} 72... Qd6+ {[%clk 0:00:34.3]} 73. Kc3 {[%clk 0:00:25.1]}
73... Qa3+ {[%clk 0:00:35.4]} 74. Kd2 {[%clk 0:00:23.3]} 74... Qb4+ {[%clk
0:00:35.3]} 75. Kd3 {[%clk 0:00:23.9]} 75... Qa3+ {[%clk 0:00:36.6]} 76. Kc2
{[%clk 0:00:23.6]} 76... Qa4+ {[%clk 0:00:35.9]} 77. Bb3 {[%clk 0:00:23.6]}
77... Qc6+ {[%clk 0:00:37]} 78. Kb1 {[%clk 0:00:22.8]} 78... Qe8 {[%clk
0:00:34.8]} 79. a7 {[%clk 0:00:23]} 79... f4 {[%clk 0:00:33.9]} 80. Re6+ {[%clk
0:00:22.6]} 80... Kf5 {[%clk 0:00:34.7]} 81. a8=Q {[%clk 0:00:23.4]} 81... Qxa8
{[%clk 0:00:35.8]} 82. e8=Q {[%clk 0:00:24.6]} 82... Qxe8 {[%clk 0:00:33.2]} 83.
Rxe8 {[%clk 0:00:25.2]} 83... f3 {[%clk 0:00:35.1]} 84. gxf3 {[%clk 0:00:26.2]}
84... gxf3 {[%clk 0:00:36.6]} 85. Bd1 {[%clk 0:00:26.3]} 85... Kf4 {[%clk
0:00:36.6]} 86. Rf8+ {[%clk 0:00:26.6]} 86... Ke3 {[%clk 0:00:38]} 87. Rxf3+
{[%clk 0:00:28]} 1-0